fUST/lending_fUST_20240413
["ID","MTS","AMOUNT","RATE_DAILY","PERIOD"]
[322314985,1712947844883,-500.0,0.00056712,120]
[322314994,1712947844893,-500.0,0.00056712,120]
[322315002,1712947844903,-500.0,0.00056712,60]
[322315009,1712947844913,-669.62,0.00056712,120]
[322315015,1712947844923,-500.0,0.00056712,120]
[322315021,1712947844934,-9742.79,0.00056712,120]
[322315027,1712947844945,-500.0,0.00056712,120]
[322315032,1712947844954,-492.18490399,0.00056712,120]
[322315036,1712947844964,-495.71633726,0.00056712,120]
[322315040,1712947844974,-836.68,0.00056712,120]
[322315044,1712947844984,-500.0,0.00056712,120]
[322315048,1712947844994,-3494.11,0.00056712,120]
[322315052,1712947845006,-2278.75,0.00056712,120]
[322315056,1712947845016,-1455.84,0.00056712,120]
[322315061,1712947845031,-154.31330905,0.00057363,120]
[322315065,1712947845049,-150.87929656,0.00058529,2]
[322315069,1712947845059,-500.0,0.0005863,120]
[322315072,1712947845069,-500.0,0.0005863,120]
[322315076,1712947845080,-573.77,0.0005863,120]
[322315079,1712947845090,-500.0,0.0005863,120]
[322315081,1712947845100,-500.0,0.0005863,120]
[322315085,1712947845110,-695.6,0.0005863,120]
[322315087,1712947845120,-500.0,0.0005863,120]
[322315092,1712947845130,-500.0,0.0005863,120]
[322315096,1712947845141,-500.0,0.0005863,120]
[322315100,1712947845151,-500.0,0.0005863,120]
[322315104,1712947845160,-555.04481474,0.0005863,120]
[322315109,1712947845170,-1000.0,0.0005863,7]
[322315112,1712947845179,-500.0,0.0005863,120]
[322315115,1712947845188,-500.0,0.0005863,120]
[322315119,1712947845198,-500.0,0.0005863,120]
[322315123,1712947845208,-500.0,0.0005863,120]
[322315127,1712947845217,-500.0,0.0005863,120]
[322315131,1712947845227,-500.0,0.0005863,120]
[322315135,1712947845238,-500.0,0.0005863,120]
[322315139,1712947845248,-500.0,0.0005863,120]
[322315143,1712947845260,-1275.06,0.0005863,120]
[322315147,1712947845269,-308.5451787,0.0005863,120]
[322315151,1712947845279,-500.0,0.0005863,120]
[322315155,1712947845293,-500.0,0.0005863,120]
[322315159,1712947845306,-500.0,0.0005863,120]
[322315163,1712947845315,-500.0,0.0005863,120]
[322315167,1712947845324,-500.0,0.0005863,120]
[322315171,1712947845334,-500.0,0.0005863,120]
[322315174,1712947845343,-1020.89,0.0005863,120]
[322315177,1712947845353,-583.95949724,0.0005863,120]
[322315180,1712947845362,-500.0,0.0005863,120]
[322315184,1712947845371,-500.0,0.0005863,120]
[322315188,1712947845380,-500.0,0.0005863,120]
[322315192,1712947845389,-500.0,0.0005863,120]
[322315196,1712947845400,-500.0,0.0005863,120]
[322315200,1712947845410,-642.43,0.0005863,120]
[322315204,1712947845420,-500.0,0.0005863,120]
[322315208,1712947845429,-500.0,0.0005863,120]
[322315212,1712947845438,-935.16,0.0005863,120]
[322315214,1712947845448,-500.0,0.0005863,120]
[322315218,1712947845458,-413.40395533,0.0005863,120]
[322315222,1712947845467,-500.0,0.0005863,120]
[322315225,1712947845476,-500.0,0.0005863,120]
[322315228,1712947845485,-500.0,0.0005863,120]
[322315231,1712947845494,-500.0,0.0005863,120]
[322315234,1712947845504,-171.84281171,0.0005863,120]
[322315237,1712947845515,-500.0,0.0005863,120]
[322315240,1712947845524,-749.15,0.0005863,120]
[322315243,1712947845534,-512.15117389,0.0005863,120]
[322315246,1712947845547,-500.0,0.0005863,120]
[322315249,1712947845556,-580.07952403,0.0005863,120]
[322315252,1712947845565,-500.0,0.0005863,120]
[322315255,1712947845574,-500.0,0.0005863,120]
[322315258,1712947845584,-500.0,0.0005863,120]
[322315261,1712947845593,-500.0,0.0005863,120]
[322315264,1712947845602,-500.0,0.0005863,120]
[322315267,1712947845612,-586.53,0.0005863,120]
[322315270,1712947845621,-500.0,0.0005863,120]
[322315273,1712947845630,-500.0,0.0005863,120]
[322315275,1712947845639,-507.01188694,0.0005863,120]
[322315277,1712947845648,-500.0,0.0005863,120]
[322315281,1712947845658,-500.0,0.0005863,120]
[322315285,1712947845667,-500.0,0.0005863,120]
[322315289,1712947845677,-500.0,0.0005863,120]
[322315293,1712947845686,-500.0,0.0005863,120]
[322315297,1712947845696,-500.0,0.0005863,120]
[322315301,1712947845705,-500.0,0.0005863,120]
[322315305,1712947845715,-500.0,0.0005863,120]
[322315309,1712947845725,-1846.4,0.0005863,120]
[322315313,1712947845735,-500.0,0.0005863,120]
[322315317,1712947845744,-1881.74,0.0005863,120]
[322315321,1712947845754,-500.0,0.0005863,120]
[322315325,1712947845764,-500.0,0.0005863,120]
[322315329,1712947845773,-941.4,0.0005863,120]
[322315333,1712947845782,-500.0,0.0005863,120]
[322315337,1712947845795,-864.01,0.0005863,120]
[322315340,1712947845805,-1978.6,0.0005863,120]
[322315343,1712947845815,-1322.38,0.0005863,120]
[322315347,1712947845825,-500.0,0.0005863,120]
[322315351,1712947845835,-812.27,0.0005863,120]
[322315355,1712947845844,-500.0,0.0005863,120]
[322315359,1712947845853,-500.0,0.0005863,120]
[322315363,1712947845866,-1438.66,0.0005863,120]
[322315366,1712947845875,-647.94,0.0005863,120]
[322315370,1712947845885,-500.0,0.0005863,120]
[322315374,1712947845894,-500.0,0.0005863,120]
[322315378,1712947845903,-500.0,0.0005863,120]
[322315382,1712947845914,-500.0,0.0005863,120]
[322315385,1712947845924,-450.49073602,0.0005863,120]
[322315389,1712947845934,-500.0,0.0005863,120]
[322315405,1712947846012,-39470.36,0.0005863,120]
[322315407,1712947846022,-771.16,0.0005863,120]
[322315410,1712947846032,-987.8,0.0005863,120]
[322315413,1712947846044,-500.0,0.0005863,120]
[322315415,1712947846054,-2429.58,0.0005863,21]
[322315418,1712947846063,-300.0,0.0005863,7]
[322315420,1712947846072,-898.49,0.0005863,120]
[322315422,1712947846081,-500.0,0.0005863,120]
[322315424,1712947846090,-500.0,0.0005863,120]
[322315426,1712947846099,-500.0,0.0005863,120]
[322315428,1712947846109,-500.0,0.0005863,120]
[322315430,1712947846118,-500.0,0.0005863,120]
[322315432,1712947846127,-1856.93,0.0005863,120]
[322315434,1712947846136,-3412.46,0.0005863,120]
[322315436,1712947846145,-7194.82,0.0005863,120]
[322315438,1712947846155,-500.0,0.0005863,120]
[322315440,1712947846164,-500.0,0.0005863,120]
[322315442,1712947846174,-500.0,0.0005863,120]
[322315444,1712947846182,-1268.06,0.0005863,120]
[322315446,1712947846192,-500.0,0.0005863,120]
[322315448,1712947846201,-1534.61,0.0005863,120]
[322315450,1712947846211,-738.75,0.0005863,120]
[322315452,1712947846221,-1101.95,0.0005863,120]
[322315453,1712947846231,-500.0,0.0005863,120]
[322315455,1712947846241,-163.00266366,0.0005863,60]
[322315457,1712947846251,-669.62,0.0005863,120]
[322315459,1712947846261,-500.0,0.0005863,120]
[322315462,1712947846272,-9742.79,0.0005863,120]
[322315464,1712947846282,-500.0,0.0005863,120]
[322315466,1712947846294,-836.68,0.0005863,120]
[322315467,1712947846303,-500.0,0.0005863,120]
[322315469,1712947846313,-3494.11,0.0005863,120]
[322315471,1712947846323,-2278.75,0.0005863,120]
[322315473,1712947846332,-1455.84,0.0005863,120]
[322315476,1712947846341,-4427.0,0.00058718,10]
[322315477,1712947846351,-155.89027091,0.00058788,120]
[322315480,1712947846362,-23097.06700293,0.0006,2]
[322315482,1712947846371,-500.0,0.00060547,120]
[322315483,1712947846381,-500.0,0.00060547,120]
[322315485,1712947846390,-573.77,0.00060547,120]
[322315487,1712947846400,-500.0,0.00060547,120]
[322315490,1712947846410,-695.6,0.00060547,120]
[322315491,1712947846419,-500.0,0.00060547,120]
[322315494,1712947846429,-500.0,0.00060547,120]
[322315496,1712947846438,-229.11562185,0.00060547,120]
[322315498,1712947846448,-617.42218079,0.00060547,120]
[322315500,1712947846458,-1000.0,0.00060547,7]
[322315501,1712947846467,-324.59005508,0.00060547,120]
[322315503,1712947846477,-500.0,0.00060547,120]
[322315505,1712947846487,-500.0,0.00060547,120]
[322315507,1712947846496,-500.0,0.00060547,120]
[322315509,1712947846506,-500.0,0.00060547,120]
[322315511,1712947846515,-500.0,0.00060547,120]
[322315513,1712947846525,-500.0,0.00060547,120]
[322315515,1712947846538,-1275.06,0.00060547,120]
[322315517,1712947846547,-500.0,0.00060547,120]
[322315519,1712947846556,-500.0,0.00060547,120]
[322315521,1712947846565,-1020.89,0.00060547,120]
[322315523,1712947846575,-501.3116989,0.00060547,120]
[322315525,1712947846584,-599.97,0.00060547,120]
[322315527,1712947846593,-500.0,0.00060547,120]
[322315529,1712947846602,-500.0,0.00060547,120]
[322315531,1712947846611,-500.0,0.00060547,120]
[322315533,1712947846621,-642.43,0.00060547,120]
[322315535,1712947846631,-500.0,0.00060547,120]
[322315537,1712947846640,-935.16,0.00060547,120]
[322315539,1712947846650,-500.0,0.00060547,120]
[322315541,1712947846659,-500.0,0.00060547,120]
[322315543,1712947846669,-500.0,0.00060547,120]
[322315545,1712947846678,-500.0,0.00060547,120]
[322315547,1712947846687,-749.15,0.00060547,120]
[322315549,1712947846696,-500.0,0.00060547,120]
[322315551,1712947846706,-500.0,0.00060547,120]
[322315553,1712947846715,-504.0763583,0.00060547,120]
[322315555,1712947846725,-500.0,0.00060547,120]
[322315557,1712947846735,-500.0,0.00060547,120]
[322315559,1712947846745,-500.0,0.00060547,120]
[322315561,1712947846754,-586.53,0.00060547,120]
[322315563,1712947846763,-503.94137622,0.00060547,120]
[322315565,1712947846773,-500.0,0.00060547,120]
[322315566,1712947846782,-357.0585463,0.00060547,120]
[322315567,1712947846794,-500.0,0.00060547,120]
[322315568,1712947846803,-500.0,0.00060547,120]
[322315569,1712947846811,-500.0,0.00060547,120]
[322315570,1712947846823,-500.0,0.00060547,120]
[322315571,1712947846832,-573.03156331,0.00060547,120]
[322315572,1712947846842,-500.0,0.00060547,120]
[322315573,1712947846851,-1846.4,0.00060547,120]
[322315574,1712947846864,-1881.74,0.00060547,120]
[322315575,1712947846874,-500.0,0.00060547,120]
[322315576,1712947846883,-941.4,0.00060547,120]
[322315577,1712947846892,-500.0,0.00060547,120]
[322315578,1712947846902,-500.0,0.00060547,120]
[322315580,1712947846911,-864.01,0.00060547,120]
[322315582,1712947846920,-1978.6,0.00060547,120]
[322315584,1712947846929,-812.27,0.00060547,120]
[322315586,1712947846939,-1322.38,0.00060547,120]
[322315588,1712947846949,-500.0,0.00060547,120]
[322315590,1712947846958,-1438.66,0.00060547,120]
[322315592,1712947846967,-647.94,0.00060547,120]
[322315594,1712947846976,-500.0,0.00060547,120]
[322315596,1712947846985,-500.0,0.00060547,120]
[322315598,1712947846994,-500.0,0.00060547,120]
[322315600,1712947847003,-500.0,0.00060547,120]
[322315602,1712947847012,-39470.36,0.00060547,120]
[322315604,1712947847021,-771.16,0.00060547,120]
[322315606,1712947847031,-987.8,0.00060547,120]
[322315608,1712947847043,-500.0,0.00060547,120]
[322315609,1712947847052,-2429.58,0.00060547,21]
[322315611,1712947847062,-898.49,0.00060547,120]
[322315614,1712947847073,-500.0,0.00060547,120]
[322315616,1712947847085,-500.0,0.00060547,120]
[322315618,1712947847094,-500.0,0.00060547,120]
[322315620,1712947847104,-1856.93,0.00060547,120]
[322315621,1712947847114,-3412.46,0.00060547,120]
[322315623,1712947847123,-7194.82,0.00060547,120]
[322315625,1712947847132,-500.0,0.00060547,120]
[322315627,1712947847142,-500.0,0.00060547,120]
[322315629,1712947847152,-170.81,0.00060547,120]
[322315631,1712947847160,-1268.06,0.00060547,120]
[322315633,1712947847170,-428.03974001,0.00060547,120]
[322315635,1712947847179,-1534.61,0.00060547,120]
[322315637,1712947847189,-738.75,0.00060547,120]
[322315639,1712947847198,-1101.95,0.00060547,120]
[322315641,1712947847207,-500.0,0.00060547,120]
[322315643,1712947847217,-669.62,0.00060547,120]
[322315645,1712947847227,-500.0,0.00060547,120]
[322315647,1712947847237,-9742.79,0.00060547,120]
[322315649,1712947847248,-500.0,0.00060547,120]
[322315651,1712947847259,-836.68,0.00060547,120]
[322315657,1712947847269,-500.0,0.00060547,120]
[322315661,1712947847280,-3494.11,0.00060547,120]
[322315665,1712947847293,-2278.75,0.00060547,120]
[322315669,1712947847304,-1455.84,0.00060547,120]
[322315674,1712947847313,-154.31330905,0.00061969,120]
[322315678,1712947847323,-5006.84126831,0.00062,120]
[322315681,1712947847333,-230.049489,0.00062004,2]
[322315686,1712947847343,-500.0,0.00062465,120]
[322315689,1712947847352,-500.0,0.00062465,120]
[322315694,1712947847362,-573.77,0.00062465,120]
[322315698,1712947847371,-695.6,0.00062465,120]
[322315702,1712947847381,-500.0,0.00062465,120]
[322315707,1712947847391,-1000.0,0.00062465,7]
[322315712,1712947847400,-500.0,0.00062465,120]
[322315717,1712947847410,-500.0,0.00062465,120]
[322315721,1712947847419,-500.0,0.00062465,120]
[322315725,1712947847428,-500.0,0.00062465,120]
[322315729,1712947847438,-500.0,0.00062465,120]
[322315734,1712947847448,-1275.06,0.00062465,120]
[322315737,1712947847457,-500.0,0.00062465,120]
[322315741,1712947847467,-500.0,0.00062465,120]
[322315745,1712947847477,-1020.89,0.00062465,120]
[322315748,1712947847486,-268.11855882,0.00062465,120]
[322315755,1712947847496,-500.0,0.00062465,120]
[322315762,1712947847506,-642.43,0.00062465,120]
[322315766,1712947847515,-500.0,0.00062465,120]
[322315772,1712947847525,-935.16,0.00062465,120]
[322315780,1712947847536,-500.0,0.00062465,120]
[322315787,1712947847547,-500.0,0.00062465,120]
[322315794,1712947847557,-500.0,0.00062465,120]
[322315801,1712947847567,-749.15,0.00062465,120]
[322315807,1712947847578,-500.0,0.00062465,120]
[322315814,1712947847588,-500.0,0.00062465,120]
[322315819,1712947847599,-500.0,0.00062465,120]
[322315823,1712947847609,-500.0,0.00062465,120]
[322315827,1712947847619,-586.53,0.00062465,120]
[322315831,1712947847629,-500.0,0.00062465,120]
[322315835,1712947847638,-500.0,0.00062465,120]
[322315839,1712947847649,-283.20543271,0.00062465,120]
[322315843,1712947847659,-500.0,0.00062465,120]
[322315847,1712947847670,-500.0,0.00062465,120]
[322315851,1712947847682,-1846.4,0.00062465,120]
[322315855,1712947847694,-1881.74,0.00062465,120]
[322315859,1712947847704,-500.0,0.00062465,120]
[322315883,1712947847778,-941.4,0.00062465,120]
[322315887,1712947847793,-317.77372815,0.00062465,120]
[322315890,1712947847802,-500.0,0.00062465,120]
[322315893,1712947847812,-864.01,0.00062465,120]
[322315896,1712947847826,-1978.6,0.00062465,120]
[322315899,1712947847836,-812.27,0.00062465,120]
[322315902,1712947847846,-1322.38,0.00062465,120]
[322315905,1712947847856,-500.0,0.00062465,120]
[322315907,1712947847868,-580.20672114,0.00062465,120]
[322315932,1712947847944,-761.52199485,0.00062465,120]
[322315936,1712947847957,-96.93128401,0.00062465,120]
[322315940,1712947847967,-647.94,0.00062465,120]
[322315944,1712947847977,-500.0,0.00062465,120]
[322315947,1712947847986,-500.0,0.00062465,120]
[322315950,1712947847997,-500.0,0.00062465,120]
[322315953,1712947848008,-563.78238311,0.00062465,120]
[322315956,1712947848018,-251.34633298,0.00062465,120]
[322315959,1712947848032,-2111.04696382,0.00062465,120]
[322315963,1712947848049,-1231.6731227,0.00062465,120]
[322315979,1712947848328,-3068.67292652,0.00039599,9]
[322315981,1712947848338,-2762.66324515,0.00039998,4]
[322315983,1712947848348,-500.0,0.00039998,31]
[322315985,1712947848358,-217.84967609,0.00039998,31]
[322315987,1712947848368,-404.421255,0.00054794,120]
[322315989,1712947848378,-35876.2935805,0.00062465,120]
[322315991,1712947848387,-771.16,0.00062465,120]
[322315993,1712947848397,-987.8,0.00062465,120]
[322315995,1712947848406,-500.0,0.00062465,120]
[322315997,1712947848415,-2429.58,0.00062465,21]
[322315999,1712947848425,-898.49,0.00062465,120]
[322316001,1712947848434,-500.0,0.00062465,120]
[322316003,1712947848443,-588.47964359,0.00062465,120]
[322316005,1712947848453,-500.0,0.00062465,120]
[322316007,1712947848462,-1856.93,0.00062465,120]
[322316009,1712947848471,-3412.46,0.00062465,120]
[322316011,1712947848481,-7194.82,0.00062465,120]
[322316013,1712947848491,-500.0,0.00062465,120]
[322316015,1712947848501,-1268.06,0.00062465,120]
[322316017,1712947848512,-1534.61,0.00062465,120]
[322316020,1712947848522,-738.75,0.00062465,120]
[322316022,1712947848532,-1101.95,0.00062465,120]
[322316024,1712947848546,-500.0,0.00062465,120]
[322316026,1712947848556,-669.62,0.00062465,120]
[322316028,1712947848566,-500.0,0.00062465,120]
[322316030,1712947848576,-9742.79,0.00062465,120]
[322316032,1712947848586,-500.0,0.00062465,120]
[322316034,1712947848595,-836.68,0.00062465,120]
[322316036,1712947848605,-500.0,0.00062465,120]
[322316038,1712947848615,-3494.11,0.00062465,120]
[322316040,1712947848625,-2278.75,0.00062465,120]
[322316042,1712947848634,-1455.84,0.00062465,120]
[322316044,1712947848644,-154.31330905,0.00062835,120]
[322316046,1712947848654,-167.49630896,0.0006291,120]
[322316048,1712947848663,-155.89027091,0.00063105,120]
[322316050,1712947848672,-157.08508369,0.00063549,120]
[322316052,1712947848681,-160.410651,0.00063927,2]
[322316054,1712947848690,-500.0,0.00064383,120]
[322316056,1712947848700,-500.0,0.00064383,120]
[322316058,1712947848709,-573.77,0.00064383,120]
[322316060,1712947848719,-695.6,0.00064383,120]
[322316062,1712947848729,-500.0,0.00064383,120]
[322316064,1712947848738,-1082.28,0.00064383,7]
[322316066,1712947848747,-500.0,0.00064383,120]
[322316068,1712947848757,-500.0,0.00064383,120]
[322316070,1712947848766,-500.0,0.00064383,120]
[322316072,1712947848776,-500.0,0.00064383,120]
[322316074,1712947848785,-1275.06,0.00064383,120]
[322316076,1712947848798,-500.0,0.00064383,120]
[322316078,1712947848808,-350.5,0.00064383,120]
[322316080,1712947848821,-1020.89,0.00064383,120]
[322316082,1712947848833,-642.43,0.00064383,120]
[322316084,1712947848842,-500.0,0.00064383,120]
[322316086,1712947848852,-935.16,0.00064383,120]
[322316088,1712947848862,-500.0,0.00064383,120]
[322316090,1712947848871,-500.0,0.00064383,120]
[322316092,1712947848881,-436.55014079,0.00064383,120]
[322316094,1712947848890,-749.15,0.00064383,120]
[322316096,1712947848899,-486.71904254,0.00064383,120]
[322316098,1712947848909,-500.0,0.00064383,120]
[322316100,1712947848918,-500.0,0.00064383,120]
[322316102,1712947848928,-586.53,0.00064383,120]
[322316104,1712947848937,-500.0,0.00064383,120]
[322316106,1712947848946,-500.0,0.00064383,120]
[322316108,1712947848956,-500.0,0.00064383,120]
[322316110,1712947848965,-1846.4,0.00064383,120]
[322316112,1712947848974,-493.30057807,0.00064383,120]
[322316114,1712947848987,-1388.43942193,0.00064383,120]
[322316116,1712947848996,-500.0,0.00064383,120]
[322316118,1712947849006,-941.4,0.00064383,120]
[322316120,1712947849015,-500.0,0.00064383,120]
[322316123,1712947849025,-864.01,0.00064383,120]
[322316126,1712947849035,-1978.6,0.00064383,120]
[322316128,1712947849048,-812.27,0.00064383,120]
[322316130,1712947849057,-1322.38,0.00064383,120]
[322316132,1712947849066,-500.0,0.00064383,120]
[322316134,1712947849075,-1438.66,0.00064383,120]
[322316136,1712947849084,-647.94,0.00064383,120]
[322316138,1712947849093,-381.91231502,0.00064383,120]
[322316140,1712947849103,-500.0,0.00064383,120]
[322316142,1712947849112,-312.33867381,0.00064383,120]
[322316144,1712947849121,-7561.19731287,0.00064383,120]
[322316147,1712947849133,-31909.16268713,0.00064383,120]
[322316149,1712947849142,-771.16,0.00064383,120]
[322316151,1712947849151,-987.8,0.00064383,120]
[322316153,1712947849160,-500.0,0.00064383,120]
[322316155,1712947849169,-2429.58,0.00064383,21]
[322316156,1712947849179,-898.49,0.00064383,120]
[322316159,1712947849188,-421.80579662,0.00064383,120]
[322316161,1712947849197,-500.0,0.00064383,120]
[322316163,1712947849206,-1856.93,0.00064383,120]
[322316165,1712947849215,-3412.46,0.00064383,120]
[322316167,1712947849224,-7194.82,0.00064383,120]
[322316169,1712947849233,-500.0,0.00064383,120]
[322316171,1712947849243,-1268.06,0.00064383,120]
[322316173,1712947849252,-1534.61,0.00064383,120]
[322316175,1712947849261,-738.75,0.00064383,120]
[322316177,1712947849270,-1101.95,0.00064383,120]
[322316179,1712947849279,-669.62,0.00064383,120]
[322316180,1712947849291,-9742.79,0.00064383,120]
[322316181,1712947849370,-500.0,0.00064383,120]
[322316182,1712947849380,-836.68,0.00064383,120]
[322316183,1712947849390,-3494.11,0.00064383,120]
[322316184,1712947849400,-2278.75,0.00064383,120]
[322316185,1712947849409,-1455.84,0.00064383,120]
[322316187,1712947849419,-5224.0,0.0006459,20]
[322316189,1712947849428,-514.0,0.000647,30]
[322316191,1712947849438,-500.0,0.00065753,120]
[322316193,1712947849447,-500.0,0.00065753,120]
[322316195,1712947849457,-500.0,0.00065753,120]
[322316197,1712947849466,-500.0,0.00065753,120]
[322316199,1712947849475,-500.0,0.00065753,120]
[322316201,1712947849486,-500.0,0.00065753,120]
[322316203,1712947849496,-154.31330905,0.00066201,120]
[322316205,1712947849505,-154.31330905,0.00066277,120]
[322316207,1712947849516,-221.48776836,0.00066301,120]
[322316208,1712947849526,-500.0,0.00066301,120]
[322316210,1712947849535,-573.77,0.00066301,120]
[322316212,1712947849547,-695.6,0.00066301,120]
[322316214,1712947849556,-500.0,0.00066301,120]
[322316216,1712947849565,-500.0,0.00066301,120]
[322316218,1712947849574,-500.0,0.00066301,120]
[322316220,1712947849583,-500.0,0.00066301,120]
[322316222,1712947849593,-500.0,0.00066301,120]
[322316224,1712947849602,-1275.06,0.00066301,120]
[322316226,1712947849612,-500.0,0.00066301,120]
[322316228,1712947849621,-1020.89,0.00066301,120]
[322316230,1712947849630,-642.43,0.00066301,120]
[322316232,1712947849639,-500.0,0.00066301,120]
[322316234,1712947849649,-935.16,0.00066301,120]
[322316236,1712947849658,-500.0,0.00066301,120]
[322316238,1712947849667,-500.0,0.00066301,120]
[322316240,1712947849677,-749.15,0.00066301,120]
[322316242,1712947849686,-500.0,0.00066301,120]
[322316244,1712947849696,-500.0,0.00066301,120]
[322316246,1712947849705,-586.53,0.00066301,120]
[322316248,1712947849715,-500.0,0.00066301,120]
[322316250,1712947849724,-500.0,0.00066301,120]
[322316252,1712947849733,-500.0,0.00066301,120]
[322316254,1712947849743,-1846.4,0.00066301,120]
[322316256,1712947849752,-500.0,0.00066301,120]
[322316258,1712947849762,-1881.74,0.00066301,120]
[322316260,1712947849771,-941.4,0.00066301,120]
[322316262,1712947849781,-500.0,0.00066301,120]
[322316264,1712947849793,-864.01,0.00066301,120]
[322316266,1712947849802,-1978.6,0.00066301,120]
[322316268,1712947849811,-812.27,0.00066301,120]
[322316270,1712947849824,-1322.38,0.00066301,120]
[322316272,1712947849833,-500.0,0.00066301,120]
[322316274,1712947849843,-1438.66,0.00066301,120]
[322316276,1712947849852,-647.94,0.00066301,120]
[322316278,1712947849865,-500.0,0.00066301,120]
[322316280,1712947849874,-39470.36,0.00066301,120]
[322316282,1712947849883,-771.16,0.00066301,120]
[322316284,1712947849892,-987.8,0.00066301,120]
[322316286,1712947849903,-500.0,0.00066301,120]
[322316288,1712947849912,-2429.58,0.00066301,21]
[322316289,1712947849922,-898.49,0.00066301,120]
[322316291,1712947849932,-1856.93,0.00066301,120]
[322316293,1712947849942,-3412.46,0.00066301,120]
[322316295,1712947849953,-7194.82,0.00066301,120]
[322316297,1712947849963,-1268.06,0.00066301,120]
[322316300,1712947849974,-1534.61,0.00066301,120]
[322316302,1712947849983,-738.75,0.00066301,120]
[322316304,1712947849992,-1101.95,0.00066301,120]
[322316306,1712947850001,-669.62,0.00066301,120]
[322316308,1712947850011,-9742.79,0.00066301,120]
[322316310,1712947850023,-500.0,0.00066301,120]
[322316312,1712947850032,-836.68,0.00066301,120]
[322316314,1712947850045,-3494.11,0.00066301,120]
[322316316,1712947850054,-2278.75,0.00066301,120]
[322316318,1712947850062,-1455.84,0.00066301,120]
[322316320,1712947850072,-167.49630896,0.00066405,120]
[322316322,1712947850081,-10000.0,0.000665,120]
[322316324,1712947850091,-200.0,0.00067615,120]
[322316326,1712947850099,-230.049489,0.00067772,2]
[322316328,1712947850108,-500.0,0.00068219,120]
[322316330,1712947850118,-573.77,0.00068219,120]
[322316332,1712947850127,-695.6,0.00068219,120]
[322316334,1712947850137,-500.0,0.00068219,120]
[322316336,1712947850146,-500.0,0.00068219,120]
[322316338,1712947850155,-500.0,0.00068219,120]
[322316340,1712947850165,-209.04628683,0.00068219,120]
[322316342,1712947850175,-500.0,0.00068219,120]
[322316344,1712947850185,-1275.06,0.00068219,120]
[322316346,1712947850194,-500.0,0.00068219,120]
[322316348,1712947850203,-1020.89,0.00068219,120]
[322316350,1712947850212,-642.43,0.00068219,120]
[322316352,1712947850222,-500.0,0.00068219,120]
[322316354,1712947850232,-935.16,0.00068219,120]
[322316355,1712947850241,-500.0,0.00068219,120]
[322316358,1712947850251,-500.0,0.00068219,120]
[322316359,1712947850261,-749.15,0.00068219,120]
[322316361,1712947850272,-500.0,0.00068219,120]
[322316363,1712947850281,-500.0,0.00068219,120]
[322316365,1712947850294,-586.53,0.00068219,120]
[322316367,1712947850303,-500.0,0.00068219,120]
[322316369,1712947850312,-500.0,0.00068219,120]
[322316371,1712947850321,-1846.4,0.00068219,120]
[322316373,1712947850330,-500.0,0.00068219,120]
[322316375,1712947850340,-1881.74,0.00068219,120]